Cogmind - Beta 11 X10 @@@ ROGUE MODE // 2022.02.04 @ 18:17:29 Player: Terminus Result: Destroyed by Quarantine Guard with Hypercooled Linear Accelerator Performance ------------- Evolutions (7) 3500 Regions Visited (28) 5600 Robots Destroyed (260) 1300 Value Destroyed (10233) 10233 Prototype IDs (40) 800 Alien Tech Used (2) 400 Bonus (4213) 4213 TOTAL SCORE: 26046 Bonus ------- High Alert Combat Kills 499 Follower Combat Kills 2103 Network Hubs Disabled 200 Met Data Miner 300 A7 Reached Mainframe 300 Used Core Reset Matrix 3000 Friendly Fire -2189 Cogmind --------- Core Integrity 0/1300 Matter 295/300 Energy 99/100 System Corruption 0% Temperature Cool (0) Movement Core (50) Location -3/Quarantine Parts ------- > --- POWER (2) -------- (None) > --- PROPULSION (5) --- (None) > --- UTILITY (11) ----- Graphene Brace Improved Hacking Suite Ghost Barrier > --- WEAPON (3) ------- (None) > --- INVENTORY (5) ---- Light Antimatter Reactor Subatomic Replicator Core Stripper CR-A16's Behemoth Slayer Peak State ------------ > --- POWER ------------ Particle Reactor Light Particle Reactor > --- PROPULSION ------- Flexi-carbon Leg Myomer Leg Myomer Leg Myomer Leg Myomer Leg > --- UTILITY ---------- Advanced Heat Sink Advanced Cooling System Advanced Cooling System High-capacity Storage Unit Experimental Sensor Array Advanced Signal Interpreter Centrium Medium Armor Plating Advanced Thermal Shield Improved Hacking Suite Advanced Hacking Suite Ghost Barrier > --- WEAPON ----------- Plasma Rifle Quantum Rifle Enhanced Nova Cannon > --- INVENTORY -------- Fission Core Reinforced Fission Core Micro Antimatter Reactor Flexi-carbon Leg Advanced Particle Charger Improved Weapon Cycler Advanced Weapon Cycler Graphene Brace Core Reset Matrix Subatomic Replicator Field Laser Field Laser Advanced Variable Charge Gun Heavy Phase Cannon Heavy Neutron Cannon Improved Matter Neutralizer CR-A16's Behemoth Slayer [Rating: 151] Favorites ----------- Power Micro Fission Core Engine Ion Engine Power Core Micro Fission Core Reactor Particle Reactor Propulsion Titanium Leg Treads Armored Treads Leg Titanium Leg Wheel Armored Wheel Utility Large Storage Unit Device Improved Heat Sink Storage Large Storage Unit Processor Improved Signal Interpreter Hackware Improved Hacking Suite Protection Centrium Medium Armor Plating Weapon Advanced Beam Cannon Energy Gun Medium Laser Energy Cannon Advanced Beam Cannon Ballistic Gun KE Penetrator Ballistic Cannon Mass Driver Launcher Mini Grenade Launcher Impact Weapon Core Stripper Slashing Weapon Chainsword Piercing Weapon CR-A16's Pointy Stick Build | -11 -10 -10 -9 -9 -9 -8 -8 -8 -7 -7 -7 -7 -6 -6 -6 -6 -6 -5 -5 -5 -5 -5 -5 -4 -4 -4 -3 -3 ------- Run | Scr Mat Min Mat Min Exi Min Mat Sto Fac Low Low Zio Pro Fac Low Low Dat Pro Fac Ext Cet Arc Hub Fac Was Fac Res Qua Slots Evolved 14 | . . . 2 . . . 2 . 2 . . . . 2 . . . . 2 . . . . 2 . . 2 . Power 1 | . . . . . . . . . . . . . . 1 . . . . . . . . . . . . . . Propulsion 3 | . . . . . . . 1 . . . . . . 1 . . . . . . . . . . . . 1 . Utility 9 | . . . 1 . . . 1 . 2 . . . . . . . . . 2 . . . . 2 . . 1 . Weapon 1 | . . . 1 . . . . . . . . . . . . . . . . . . . . . . . . . Parts Attached 392 | 6 10 1 29 2 . . 48 24 12 5 1 2 14 29 6 8 20 7 38 25 7 5 6 6 4 21 27 29 Power 42 | 1 2 . 3 . . . 3 1 1 . . 1 2 5 . . 2 1 6 3 . 1 . . . 2 4 4 Engine 14 | 1 2 . 3 . . . 1 . . . . . 1 2 . . 1 . 2 1 . . . . . . . . Core 19 | . . . . . . . 2 1 1 . . 1 1 3 . . 1 . 3 2 . . . . . 2 . 2 Reactor 9 | . . . . . . . . . . . . . . . . . . 1 1 . . 1 . . . . 4 2 Propulsion 73 | 2 4 1 7 . . . 14 7 2 . . . 4 5 . . 5 1 3 4 . . 1 . . 6 3 4 Treads 1 | . . . . . . . 1 . . . . . . . . . . . . . . . . . . . . . Leg 71 | 2 4 1 7 . . . 12 7 2 . . . 4 5 . . 5 1 3 4 . . 1 . . 6 3 4 Wheel 1 | . . . . . . . 1 . . . . . . . . . . . . . . . . . . . . . Hover . | . . . . . . . . . . . . . . . . . . . . . . . . . . . . . Flight . | . . . . . . . . . . . . . . . . . . . . . . . . . . . . . Utility 167 | 1 3 . 7 . . . 14 8 7 3 . . 6 9 4 5 9 4 19 13 4 4 5 5 3 10 10 14 Device 103 | . 2 . 6 . . . 9 6 4 1 . . 3 6 1 3 5 2 8 7 1 3 2 3 3 9 10 9 Storage 8 | 1 1 . 1 . . . . 1 . . . . . . . 1 1 . . . . . . 1 . . . 1 Processor 4 | . . . . . . . . . 1 . . . . . . . . . 2 . . . . . . . . 1 Hackware 11 | . . . . . . . . 1 . 1 . . . . 1 . 1 . 4 . . 1 . 1 . . . 1 Protection 41 | . . . . . . . 5 . 2 1 . . 3 3 2 1 2 2 5 6 3 . 3 . . 1 . 2 Artifact . | . . . . . . . . . . . . . . . . . . . . . . . . . . . . . Weapon 110 | 2 1 . 12 2 . . 17 8 2 2 1 1 2 10 2 3 4 1 10 5 3 . . 1 1 3 10 7 Energy Gun 33 | 2 1 . 9 . . . . 1 . . . . 2 2 . . . . 5 3 2 . . 1 . . 4 1 Energy Cannon 55 | . . . 2 1 . . 14 7 2 . . . . 8 1 2 3 . 1 1 1 . . . 1 3 5 3 Ballistic Gun 2 | . . . . . . . . . . . . . . . . . . . 2 . . . . . . . . . Ballistic Cannon 2 | . . . . . . . . . . . . . . . . . . . 2 . . . . . . . . . Launcher 8 | . . . 1 1 . . 3 . . 1 . . . . 1 . . 1 . . . . . . . . . . Special Weapon . | . . . . . . . . . . . . . . . . . . . . . . . . . . . . . Impact Weapon 1 | . . . . . . . . . . . . . . . . . . . . . . . . . . . . 1 Slashing Weapon 2 | . . . . . . . . . . 1 1 . . . . . . . . . . . . . . . . . Piercing Weapon 7 | . . . . . . . . . . . . 1 . . . 1 1 . . 1 . . . . . . 1 2 Special Melee Weapon . | . . . . . . . . . . . . . . . . . . . . . . . . . . . . . Unidentified Prototypes 17 | . . . 2 . . . 1 1 . . . . . 1 . . 4 . 3 . 2 . . . . 1 2 . Corrupted Parts 1 | . . . . . . . . . . . . . . . . . . . . . . 1 . . . . . . System Corruption 2 | . . . . . . . . . . . . . . . . . . . . . . 2 . . . . . . Parts Lost 89 | . 1 . 2 . . . 16 . . . . . 7 . . . 6 15 1 . 1 . 1 1 . 9 7 22 Power 14 | . 1 . . . . . 2 . . . . . 2 . . . 1 3 . . . . . . . . 2 3 Propulsion 28 | . . . . . . . 6 . . . . . 1 . . . 1 4 . . . . 1 . . 6 2 7 Utility 30 | . . . 1 . . . 5 . . . . . 3 . . . 2 5 1 . . . . . . 3 2 8 Weapon 17 | . . . 1 . . . 3 . . . . . 1 . . . 2 3 . . 1 . . 1 . . 1 4 Highest Loss Streak 15 | . 1 . 2 . . . 15 . . . . . 7 . . . 4 15 1 . 1 . 1 1 . 5 3 15 To Critical Strikes . | . . . . . . . . . . . . . . . . . . . . . . . . . . . . . Average Slot Usage (%) 97 | . 99 100 99 100 100 100 98 95 99 100 100 100 97 99 100 100 97 94 88 100 100 100 100 100 100 98 99 89 Engine 5 | . 14 14 11 11 11 11 8 . . . . . 1 6 6 6 3 4 2 1 5 1 . . . . . . Core 3 | . . . . . . . . 9 7 7 7 7 4 5 6 6 8 5 6 9 5 5 5 5 5 7 1 . Leg 22 | . 28 28 22 22 22 22 25 15 23 23 23 23 22 26 26 26 25 25 15 23 23 23 23 21 21 20 22 19 Device 18 | . 13 14 22 22 22 22 18 18 22 22 23 23 21 19 19 19 16 19 16 14 13 14 16 15 15 17 22 20 Storage 7 | . 14 14 11 11 11 11 9 8 7 7 7 7 7 6 6 6 6 6 5 5 5 5 5 5 5 5 4 3 Processor 4 | . . . . . . . . . 7 7 7 7 7 6 6 6 6 6 10 11 11 11 11 10 10 6 4 3 Hackware 5 | . . . . . . . . 8 7 7 7 7 7 6 6 6 5 5 10 11 11 11 11 15 15 15 14 14 Protection 1 | . . . . . . . 8 . . . . . . . . . 3 . . 1 2 2 . 5 5 5 4 3 Energy Gun 7 | . 27 28 26 11 11 11 1 . . . . . 3 1 . . . . 5 14 6 5 5 6 5 5 6 8 Energy Cannon 13 | . . . 5 21 22 22 25 27 22 20 15 15 12 18 19 19 14 16 3 1 10 11 11 8 9 10 6 3 Naked Turns . | . . . . . . . . . . . . . . . . . . . . . . . . . . . . . Heaviest Build 111 | 14 30 30 40 40 40 40 56 42 58 49 45 45 52 70 66 66 74 71 74 72 76 78 78 79 79 91 105 111 Greatest Support 125 | 20 20 20 20 20 20 20 47 51 54 54 54 54 54 74 74 74 96 96 91 96 96 96 96 88 88 93 120 125 Greatest Overweight (x) 9 | 4 1 1 1 1 1 1 9 3 1 . . . 1 1 . . 1 . 1 . . . . . . 2 1 3 Average Overweight (x) . | . . 1 1 1 1 1 1 1 . . . . . . . . . . . . . . . . . . . . Largest Inventory Capacity 20 | 8 15 15 15 15 15 15 15 15 15 15 15 15 15 15 15 15 15 15 15 15 15 15 15 15 15 15 15 20 Average Capacity 14 | 6 13 15 15 15 15 15 15 14 15 15 15 15 15 15 15 15 15 15 15 15 15 15 15 15 15 15 15 16 Most Carried 18 | 2 15 15 15 15 15 15 15 15 15 15 15 15 15 15 15 15 15 15 15 15 15 15 15 14 15 15 15 18 Average Carried 14 | . 10 14 14 15 15 15 14 14 14 15 15 15 14 14 14 14 14 14 12 14 14 14 14 13 14 14 12 14 Final Capacity 15 | 8 15 15 15 15 15 15 15 15 15 15 15 15 15 15 15 15 15 15 15 15 15 15 15 15 15 15 15 5 Final Carried 15 | 2 15 15 15 15 15 15 9 15 15 15 15 15 15 15 14 15 15 12 15 15 15 15 14 13 15 14 15 5 Class Distribution -------------------- 26% | Scavenger-Skirmisher 19% | Scavenger-Gunner 18% | Mutant 11% | Scavenger-Mutant 11% | Scavenger-Tank 4% | Skirmisher Dominant Class ---------------- Mutant | -10/Materials Mutant | -10/Mines Scavenger-Gunner | -9/Materials Scavenger-Gunner | -9/Mines Scavenger-Gunner | -9/Exiles Scavenger-Gunner | -8/Mines Scavenger-Tank | -8/Materials Gunner | -8/Storage Skirmisher | -7/Factory Skirmisher | -7/Lower Caves Mutant | -7/Lower Caves Mutant | -7/Zion Mutant | -6/Proximity Caves Scavenger-Skirmisher | -6/Factory Scavenger-Skirmisher | -6/Lower Caves Scavenger-Skirmisher | -6/Lower Caves Scavenger-Mutant | -6/Data Miner Scavenger-Mutant | -5/Proximity Caves Scavenger-Skirmisher | -5/Factory Scavenger-Skirmisher | -5/Extension Scavenger-Skirmisher | -5/Cetus Scavenger-Gunner | -5/Archives Scavenger-Skirmisher | -5/Hub_04(d) Scavenger-Skirmisher | -4/Factory Scavenger-Skirmisher | -4/Waste Scavenger-Skirmisher | -4/Factory Scavenger-Tank | -3/Research Scavenger-Mutant | -3/Quarantine Resources | -11 -10 -10 -9 -9 -9 -8 -8 -8 -7 -7 -7 -7 -6 -6 -6 -6 -6 -5 -5 -5 -5 -5 -5 -4 -4 -4 -3 -3 ----------- Run | Scr Mat Min Mat Min Exi Min Mat Sto Fac Low Low Zio Pro Fac Low Low Dat Pro Fac Ext Cet Arc Hub Fac Was Fac Res Qua Matter Collected 4111 | 158 172 40 318 27 . 26 497 242 140 30 30 10 123 242 106 98 173 40 361 324 82 50 10 23 126 145 206 312 Remotely . | . . . . . . . . . . . . . . . . . . . . . . . . . . . . . Salvage Created 13853 | . 528 101 1394 80 . 23 2101 848 144 160 47 . 98 435 445 198 409 192 472 1832 620 533 474 127 255 1025 834 478 Parts 587 | . 23 2 81 2 . . 120 41 4 3 2 . 3 17 7 13 19 11 26 60 17 17 20 8 2 36 25 28 Haulers Intercepted 20 | . 2 . 3 . . . 4 4 . . . . . 2 . . . . . 1 . . 1 . . 3 . . Recyclers Shooed 11 | . . . 2 . . . 3 . . . . . . . . . . . . 3 . . . . . 2 1 . Parts Field Recycled . | . . . . . . . . . . . . . . . . . . . . . . . . . . . . . Retrieved Matter . | . . . . . . . . . . . . . . . . . . . . . . . . . . . . . Parts Self-Destructed 42 | . . . . . . . . . . 9 . . 12 . 4 6 . 11 . . . . . . . . . . Prevented 1 | . . . . . . . . . . . . . . . 1 . . . . . . . . . . . . . Kills | -11 -10 -10 -9 -9 -9 -8 -8 -8 -7 -7 -7 -7 -6 -6 -6 -6 -6 -5 -5 -5 -5 -5 -5 -4 -4 -4 -3 -3 ------- Run | Scr Mat Min Mat Min Exi Min Mat Sto Fac Low Low Zio Pro Fac Low Low Dat Pro Fac Ext Cet Arc Hub Fac Was Fac Res Qua Combat Hostiles Destroyed 185 | . 12 . 22 8 . . 41 15 2 3 . . 1 3 5 2 4 5 6 14 7 4 5 2 1 7 9 7 Melee 4 | . . . . . . . . . . . . . . . . . 4 . . . . . . . . . . . Guns 46 | . 9 . 13 2 . . 2 . . . . . . . . . . . . 12 2 1 . 1 . . 4 . Cannons 93 | . . . 5 2 . . 31 14 1 3 . . . 2 2 1 . 1 6 1 4 2 5 1 1 4 2 5 AOE 21 | . 2 . 3 3 . . 7 . . . . . . . 2 . . 4 . . . . . . . . . . Classes Destroyed 22 | . 4 . 4 1 . . 4 1 1 . 1 . 1 1 1 1 . . . 1 . . . . 1 . . . Worker 12 | . . . 2 . . 1 2 . . . . . . 1 . . . . . . . . 2 . . 4 . . Builder 5 | . . . . . . . . . . . . . . 1 . . . . 2 . . . 1 1 . . . . Hauler 20 | . 2 . 3 . . . 4 4 . . . . . 2 . . . . . 1 . . 1 . . 3 . . Recycler 13 | . . . 3 . . . 2 . . . . . . . . . . . . 6 . . . . . 1 1 . Minesweeper 1 | . . . . . . . . . . . . . . . 1 . . . . . . . . . . . . . Operator 6 | . . . 1 . . . 1 . . . . . . . . . . . . . . 4 . . . . . . Watcher 16 | . 2 . 3 . . . 5 . 1 . . . . 1 . . . . 3 . . . 1 . . . . . Swarmer 26 | . 3 . 4 4 . . 8 3 . . . . . . 2 . . 2 . . . . . . . . . . Grunt 73 | . 9 . 13 . . . 21 4 . 3 . . . . 2 . . 2 1 6 5 . 2 . . . 5 . Brawler 2 | . . . . . . . 1 1 . . . . . . . . . . . . . . . . . . . . Duelist 1 | . . . . . . . . 1 . . . . . . . . . . . . . . . . . . . . Protector 2 | . . . . . . . 1 1 . . . . . . . . . . . . . . . . . . . . Sentry 32 | . . . 6 . . . 7 5 1 . . . . 1 1 . . 1 1 2 . 4 1 . . 1 1 . Specialist 4 | . . . . . . . 2 . . . . . . . . . . . . . . . 2 . . . . . Hunter 8 | . . . . . . . . . . . . . . . . . . . . 2 . . . . . 3 . 3 Programmer 19 | . . . . . . . . . 1 . . . . 2 . . . . 4 2 . . . 2 . 2 2 4 Heavy 2 | . . . . . . . 1 . . . . . . . . . . . . . . . . . . 1 . . Behemoth 5 | . . . . . . . . . . . . . 1 . . 1 . . . 2 . . . . . . 1 . Compactor 1 | . . . . . . . . . . . . . . . . . . . . . . . . . 1 . . . Cetus Guard 2 | . . . . . . . . . . . . . . . . . . . . . 2 . . . . . . . Enhanced Grunt 4 | . . . . . . . . . . . . . . . . . 4 . . . . . . . . . . . Decomposer 2 | . . . . . . . . . . . . . . . . 2 . . . . . . . . . . . . Packrat 3 | . . . . . . . . . . . . . . . 3 . . . . . . . . . . . . . Samaritan 1 | . . . . . . . . . . . 1 . . . . . . . . . . . . . . . . . Thief 1 | . . . . . . . . . . . . . . . . 1 . . . . . . . . . . . . Assembled 4 | . . . . 4 . . . . . . . . . . . . . . . . . . . . . . . . Thug 1 | . . . . . . . . . . . . . . . . . . . . . 1 . . . . . . . Guerrilla 1 | . . . . . . . . . . . . . . . . . . . . . 1 . . . . . . . Best Kill Streak 7 | . 3 . 4 4 . 1 7 4 1 3 . . 1 1 3 1 2 4 2 3 5 4 5 3 1 3 5 3 Combat Bots Only 5 | . 3 . 3 4 . . 5 4 1 3 . . 1 1 3 1 2 4 2 3 5 2 5 2 1 2 5 3 Max Kills in Single Turn 3 | . 2 1 3 3 . 1 3 2 1 1 1 . 1 1 2 1 1 2 1 1 2 1 3 2 1 2 1 1 Gunslinging 1 | . . . 1 . . . . . . . . . . . . . . . . . . . . . . . . . Exploded 3 | . 2 . 3 3 . . 2 . . . . . . . 2 . . 2 . . . . . . . . . . Melee 1 | . . . . . . . . . . . . . . . . . 1 . . . . . . . . . . . Uniques/NPCs Destroyed 3 | . . 1 . . . . . . . . . . . . . . 1 . . . 1 . . . . . . . YI-UF0 (-10/Mines) Data Miner (-6/Data Miner) A7 (-5/Cetus) Combat | -11 -10 -10 -9 -9 -9 -8 -8 -8 -7 -7 -7 -7 -6 -6 -6 -6 -6 -5 -5 -5 -5 -5 -5 -4 -4 -4 -3 -3 -------- Run | Scr Mat Min Mat Min Exi Min Mat Sto Fac Low Low Zio Pro Fac Low Low Dat Pro Fac Ext Cet Arc Hub Fac Was Fac Res Qua Damage Taken 18381 | . 433 . 549 41 . . 2879 496 315 128 . . 1041 300 278 61 1128 1900 352 690 164 . 370 345 . 1814 966 4131 Core 3016 | . 105 . 50 7 . . 361 98 82 15 . . 115 31 6 . 47 305 98 83 39 . 20 38 . 192 122 1202 Absorbed by Shields 939 | . . . . . . . . . . . . . . . . . . . . 160 12 . . . . 359 408 . Regen/Repaired (Parts) 1460 | . 57 . 123 . . . 100 250 . . . . . . . . . . . . . . . . . . . 930 Core Remaining (%) 67 | 100 . 58 . . . 85 . 16 . . . . 69 . . . . 54 . . . . 76 . . 80 . . Volleys Fired 713 | . 47 8 65 8 . . 113 46 9 4 . . . 32 18 6 5 32 41 45 15 13 31 16 12 54 49 44 Largest 3 | . 2 2 3 3 . . 3 3 3 3 . . . 3 3 3 1 3 3 3 3 3 3 3 3 3 3 3 Hottest 279 | . 100 100 192 192 . . 204 204 228 228 . . . 210 210 215 65 210 199 252 255 255 255 259 255 270 270 279 Shots Fired 1661 | . 94 16 189 21 . 1 274 138 27 12 . . . 76 42 18 5 36 61 135 39 36 70 32 34 132 107 66 Gun 608 | . 94 16 143 6 . . 14 . . . . . . 3 . . . . 18 130 19 11 18 11 10 37 54 24 Cannon 1038 | . . . 44 14 . 1 251 138 27 12 . . . 73 41 18 5 34 43 5 20 25 52 21 24 95 53 42 Launcher 15 | . . . 2 1 . . 9 . . . . . . . 1 . . 2 . . . . . . . . . . Special . | . . . . . . . . . . . . . . . . . . . . . . . . . . . . . Kinetic 11 | . . . . . . . . . . . . . . . . . . . 11 . . . . . . . . . Thermal 1635 | . 94 16 187 20 . 1 265 138 27 12 . . . 76 41 18 5 34 50 135 39 36 70 32 34 132 107 66 Explosive 15 | . . . 2 1 . . 9 . . . . . . . 1 . . 2 . . . . . . . . . . Electromagnetic . | . . . . . . . . . . . . . . . . . . . . . . . . . . . . . Robot Hit Streak 26 | . 12 7 14 2 . 2 22 8 7 3 . . . 10 13 5 . 5 15 24 22 26 9 9 26 13 12 14 Robot Miss Streak 5 | . 3 1 3 2 . . 3 3 5 1 . . . 4 2 2 . 1 2 4 1 1 2 2 2 4 4 3 Penetration Max . | . . . . . . . . . . . . . . . . . . . . . . . . . . . . . Secondary Targets 4 | . . . 1 . . . . . . . . . . . . . . . . 3 . . . . . . . . Max Gunslinging Chain 1 | . . . 1 . . . . . . . . . . . . . . . . 1 . . . . . . . . Shots Hit Robots 978 | . 65 13 108 7 . 1 147 80 16 6 2 . 5 28 23 9 19 6 39 104 30 31 25 16 31 76 63 28 Core Hits 444 | . 28 6 50 8 . 2 83 27 4 6 . . 1 9 14 4 14 11 11 42 18 17 17 5 5 28 22 12 Critical Kills 8 | . . . 1 1 . . . 2 . . . . . . . . . . 1 . 1 1 . . . 1 . . Critical Parts Destroyed . | . . . . . . . . . . . . . . . . . . . . . . . . . . . . . Critical Strikes 43 | . 3 2 5 1 . . 1 2 . . . . . 2 . . 6 . 2 10 2 1 1 . 1 3 1 . Burn 29 | . 3 2 4 . . . 1 . . . . . . 2 . . . . 1 10 1 . 1 . 1 2 1 . Meltdown 8 | . . . 1 1 . . . 2 . . . . . . . . . . 1 . 1 1 . . . 1 . . Impale 6 | . . . . . . . . . . . . . . . . . 6 . . . . . . . . . . . Melee Attacks 64 | . . . . . . . . . . 1 14 . 15 . . 1 26 . . 1 . . . . . . 1 5 Impact . | . . . . . . . . . . . . . . . . . . . . . . . . . . . . . Slashing 15 | . . . . . . . . . . 1 14 . . . . . . . . . . . . . . . . . Piercing 49 | . . . . . . . . . . . . . 15 . . 1 26 . . 1 . . . . . . 1 5 Sneak Attacks 3 | . . . . . . . . . . . 2 . . . . . 1 . . . . . . . . . . . Combat Hostiles . | . . . . . . . . . . . . . . . . . . . . . . . . . . . . . Follow-up Attacks . | . . . . . . . . . . . . . . . . . . . . . . . . . . . . . Damage Inflicted 27734 | . 992 175 1844 263 . 22 4518 1791 376 165 239 . 131 928 783 211 682 659 1269 2543 852 884 1202 579 956 2601 1948 1121 Guns 8652 | . 809 164 1230 32 . . 171 . . . . . . 62 . . . . 331 2458 404 241 177 267 197 604 1176 329 Cannons 14890 | . . . 370 102 . 21 3132 1779 376 165 . . . 801 636 211 . 125 901 73 448 643 577 312 759 1989 772 698 Explosions 2837 | . 179 . 241 113 . . 1188 . . . . . . . 147 . . 521 . . . . 448 . . . . . Melee 1111 | . . . . . . . . . . . 239 . 131 . . . 682 . . . . . . . . . . 59 Ramming 244 | . 4 11 3 16 . 1 27 12 . . . . . 65 . . . 13 37 12 . . . . . 8 . 35 Kinetic 145 | . . . . . . . . . . . . . . . . . . . 145 . . . . . . . . . Thermal 23576 | . 988 164 1600 134 . 21 3303 1779 376 165 . . . 863 636 211 . 125 1087 2531 852 884 754 579 956 2593 1948 1027 Explosive 2210 | . . . 241 113 . . 1188 . . . . . . . 147 . . 521 . . . . . . . . . . Electromagnetic 448 | . . . . . . . . . . . . . . . . . . . . . . . 448 . . . . . Impact . | . . . . . . . . . . . . . . . . . . . . . . . . . . . . . Slashing 239 | . . . . . . . . . . . 239 . . . . . . . . . . . . . . . . . Piercing 872 | . . . . . . . . . . . . . 131 . . . 682 . . . . . . . . . . 59 Highest Corruption 9 | . . . 2 2 2 2 1 2 . . . . . 2 2 2 2 4 . 2 2 4 . 2 2 9 4 6 Average Corruption 2 | . . . 2 2 2 2 1 1 . . . . . 2 2 2 2 2 . 1 2 2 . 2 2 2 3 4 Corruption Purged 4 | . . . . . . . . . . . . . . . . . . . . . . 4 . . . . . . Corruption Blocked 9 | . . . . . . . . . . . . . . . . . . . 9 . . . . . . . . . Effects 136 | . . . 13 5 6 5 8 8 . . . . . 2 12 10 6 3 . 11 3 1 . 1 4 9 6 23 Message Errors 25 | . . . 2 2 1 . . 1 . . . . . 2 4 2 1 1 . 1 1 . . . 2 1 1 3 Matter Fused 34 | . . . 2 1 3 . 1 3 . . . . . . 3 3 1 1 . 5 1 . . 1 . 2 2 5 Heat Flow Errors 16 | . . . 2 . . 1 1 1 . . . . . . . 1 1 1 . 1 . . . . . 1 . 6 Energy Discharges 18 | . . . 2 2 . . 3 1 . . . . . . 3 1 1 . . 1 . . . . 1 1 1 1 Parts Rejected 1 | . . . . . . . 1 . . . . . . . . . . . . . . . . . . . . . Data Loss (minor) 23 | . . . 3 . 1 2 1 1 . . . . . . 2 2 2 . . 1 1 1 . . 1 1 . 4 Data Loss (major) 4 | . . . 1 . 1 . . . . . . . . . . . . . . 1 . . . . . . . 1 Misfires 5 | . . . 1 . . 1 1 . . . . . . . . . . . . 1 . . . . . . . 1 Alerts 5 | . . . . . . 1 . 1 . . . . . . . 1 . . . . . . . . . . 1 1 Weapon Failures 5 | . . . . . . . . . . . . . . . . . . . . . . . . . . 3 1 1 Overload Shots . | . . . . . . . . . . . . . . . . . . . . . . . . . . . . . Overflow Damage 829 | . 67 . 50 15 . . 30 . 27 . 174 . . 67 47 51 . . 70 . 26 18 17 61 . 48 24 37 Projectiles 526 | . . . 17 10 . . 23 . 27 . . . . 67 47 51 . . 70 . 26 18 . 61 . 48 24 37 Explosions 129 | . 67 . 33 5 . . 7 . . . . . . . . . . . . . . . 17 . . . . . Melee 174 | . . . . . . . . . . . 174 . . . . . . . . . . . . . . . . . Knockbacks 2 | . . . . 1 . . . . . . . . . . . . . . . 1 . . . . . . . . Impact 2 | . . . . 1 . . . . . . . . . . . . . . . 1 . . . . . . . . Kinetic . | . . . . . . . . . . . . . . . . . . . . . . . . . . . . . Secondary . | . . . . . . . . . . . . . . . . . . . . . . . . . . . . . Self-Inflicted Damage 389 | . 55 . 127 . . . 78 . . . . . . . . . . 34 . . . . 93 . . . . 2 Shots 8 | . 1 . 2 . . . 3 . . . . . . . . . . 1 . . . . 1 . . . . . Rammed 1 | . . . . . . . . . . . . . . . . . . . . . . . . . . . . 1 Targets Rammed 42 | . 1 3 2 5 . 2 5 2 . . . . . 9 . . . 4 5 1 . . . . . 1 . 2 Kicked 41 | . 1 3 2 5 . 2 5 2 . . . . . 9 . . . 4 5 1 . . . . . 1 . 1 Crushed . | . . . . . . . . . . . . . . . . . . . . . . . . . . . . . Highest Temperature 308 | . 171 72 250 108 . 84 229 308 220 181 . . . 108 207 208 191 151 3 148 93 63 153 286 212 223 114 241 Average Temperature 55 | . 43 36 45 40 . 62 72 77 80 101 . . . 33 83 60 126 35 3 55 37 18 36 95 50 30 17 72 Received Heat Transfer 3068 | . 189 . 186 . . . 990 243 6 90 . . 168 42 84 12 . 620 54 81 27 . 90 . . 12 174 . Effects 3 | . . . . . . . 1 2 . . . . . . . . . . . . . . . . . . . . Energy Bleed 1 | . . . . . . . 1 . . . . . . . . . . . . . . . . . . . . . Interference 2 | . . . . . . . . 2 . . . . . . . . . . . . . . . . . . . . Siege Activations . | . . . . . . . . . . . . . . . . . . . . . . . . . . . . . Robots Corrupted . | . . . . . . . . . . . . . . . . . . . . . . . . . . . . . Combat Hostiles . | . . . . . . . . . . . . . . . . . . . . . . . . . . . . . Parts Fried 3 | . . . . . . . . 1 . . . . . . . . . . . 1 . . 1 . . . . . Impact Corruptions . | . . . . . . . . . . . . . . . . . . . . . . . . . . . . . Robots Melted 22 | . 1 . 2 1 . . 1 2 1 . . . . 1 1 . . . 1 1 1 1 . . . 4 2 2 Combat Hostiles 17 | . 1 . 1 1 . . 1 1 1 . . . . 1 1 . . . . . 1 1 . . . 3 2 2 Parts Melted 115 | . 10 . 9 . . . 10 11 4 2 . . . 6 1 . . . 2 20 6 5 3 3 . 8 8 7 Heat Transferred 42064 | . 2727 629 4297 259 . 37 5661 3214 631 311 . . . 1516 992 335 . 174 1369 5411 1550 1550 1400 861 1557 3843 2650 1090 Parts Sabotaged . | . . . . . . . . . . . . . . . . . . . . . . . . . . . . . Parts Stolen . | . . . . . . . . . . . . . . . . . . . . . . . . . . . . . Parts Stripped . | . . . . . . . . . . . . . . . . . . . . . . . . . . . . . Power Chain Reactions . | . . . . . . . . . . . . . . . . . . . . . . . . . . . . . Missiles Intercepted . | . . . . . . . . . . . . . . . . . . . . . . . . . . . . . Alert | -11 -10 -10 -9 -9 -9 -8 -8 -8 -7 -7 -7 -7 -6 -6 -6 -6 -6 -5 -5 -5 -5 -5 -5 -4 -4 -4 -3 -3 ------- Run | Scr Mat Min Mat Min Exi Min Mat Sto Fac Low Low Zio Pro Fac Low Low Dat Pro Fac Ext Cet Arc Hub Fac Was Fac Res Qua Peak Influence 1193 | . 264 . 430 166 . 5 489 1193 518 . . . . 83 . . . . 122 480 607 332 382 140 114 395 461 262 Initial 511 | . . . . 76 . . . 206 511 . . . . . . . . . . . 268 242 116 73 49 79 157 186 Average 191 | . 90 . 190 91 . 2 229 876 345 . . . . 26 . . . . 53 152 408 304 261 96 89 226 286 156 Maximum Alert Level 4 | . 1 . 2 . . . 2 4 2 . . . . . . . . . . 2 2 1 1 . . 1 2 1 Low Security (%) 62 | 100 88 100 47 100 . 100 41 . . . . . . 100 . . . . 100 73 . . 28 100 100 36 24 67 Level 1 27 | . 11 . 50 . . . 49 5 59 . . . . . . . . . . 18 71 100 71 . . 63 60 32 Level 2 5 | . . . 2 . . . 9 10 40 . . . . . . . . . . 7 28 . . . . . 14 . Level 3 3 | . . . . . . . . 62 . . . . . . . . . . . . . . . . . . . . Level 4 1 | . . . . . . . . 21 . . . . . . . . . . . . . . . . . . . . Level 5 . | . . . . . . . . . . . . . . . . . . . . . . . . . . . . . High Security . | . . . . . . . . . . . . . . . . . . . . . . . . . . . . . Max Security . | . . . . . . . . . . . . . . . . . . . . . . . . . . . . . Squads Dispatched 51 | . 2 . 2 . . . 7 6 2 . . . . 4 . . . 1 6 . . . 5 1 . 8 4 3 Investigation 10 | . 2 . . . . . 1 . 1 . . . . 2 . . . . 2 . . . . . . . 1 1 Extermination 9 | . . . . . . . . . 1 . . . . 1 . . . . 2 . . . . . . 1 2 2 Reinforcement 24 | . . . 2 . . . 5 4 . . . . . 1 . . . . 2 . . . 4 1 . 4 1 . Assault 4 | . . . . . . . 1 2 . . . . . . . . . 1 . . . . . . . . . . Garrison 4 | . . . . . . . . . . . . . . . . . . . . . . . 1 . . 3 . . Intercept . | . . . . . . . . . . . . . . . . . . . . . . . . . . . . . Construction Impeded 5 | . . . . . . . 1 . . . . . . 1 . . . . . . . . 1 . . 1 1 . Haulers Reinforced 1 | . . . . . . . . . . . . . . . . . . . . . . . . . . 1 . . Active Scanning Responses . | . . . . . . . . . . . . . . . . . . . . . . . . . . . . . Cargo Convoy Interrupts 1 | . . . . . . . . . . . . . . . . . . . 1 . . . . . . . . . Stealth | -11 -10 -10 -9 -9 -9 -8 -8 -8 -7 -7 -7 -7 -6 -6 -6 -6 -6 -5 -5 -5 -5 -5 -5 -4 -4 -4 -3 -3 --------- Run | Scr Mat Min Mat Min Exi Min Mat Sto Fac Low Low Zio Pro Fac Low Low Dat Pro Fac Ext Cet Arc Hub Fac Was Fac Res Qua Distress Signals 27 | . 4 . 3 . . . 1 3 1 . . . . 1 . . . . 1 3 1 . 1 1 . 5 1 1 Communications Jammed . | . . . . . . . . . . . . . . . . . . . . . . . . . . . . . Distress Signals . | . . . . . . . . . . . . . . . . . . . . . . . . . . . . . Times Spotted 356 | . 21 . 36 8 . . 59 44 3 3 . . 1 9 8 3 4 28 11 33 14 6 10 3 5 19 11 17 Peak Tracking Total 18 | . 4 . 6 4 . . 7 7 2 3 . . 1 2 3 3 2 18 4 5 8 1 4 4 4 7 6 6 Tactical Retreats 18 | . 1 . 2 . . . 5 2 . . . . . . 1 . . 2 . . 1 . 1 . . . 2 1 Traps | -11 -10 -10 -9 -9 -9 -8 -8 -8 -7 -7 -7 -7 -6 -6 -6 -6 -6 -5 -5 -5 -5 -5 -5 -4 -4 -4 -3 -3 ------- Run | Scr Mat Min Mat Min Exi Min Mat Sto Fac Low Low Zio Pro Fac Low Low Dat Pro Fac Ext Cet Arc Hub Fac Was Fac Res Qua Traps Triggered 22 | . 1 . 1 . . . 2 4 5 . . . . 4 . . . . . 1 . . . 2 . 2 . . Indirectly . | . . . . . . . . . . . . . . . . . . . . . . . . . . . . . Trap Hack Attempts . | . . . . . . . . . . . . . . . . . . . . . . . . . . . . . Triggered . | . . . . . . . . . . . . . . . . . . . . . . . . . . . . . Disarmed 6 | . . . 6 . . . . . . . . . . . . . . . . . . . . . . . . . Reprogrammed 6 | . . . . . . . . . . . . . . . . . . . . . . . . . . . . 6 Reused 1 | . . . . . . . . . . . . . . . 1 . . . . . . . . . . . . . Traps Extracted . | . . . . . . . . . . . . . . . . . . . . . . . . . . . . . Installed 1 | . . . . . . . . . . . . . . . 1 . . . . . . . . . . . . . Triggered 3 | . . . . . . . . 1 . . . . . . 1 . . . 1 . . . . . . . . . Most Traps Carried 1 | . . . . . . . . . . . . . . . 1 . . . . . . . . . . . . . Machines | -11 -10 -10 -9 -9 -9 -8 -8 -8 -7 -7 -7 -7 -6 -6 -6 -6 -6 -5 -5 -5 -5 -5 -5 -4 -4 -4 -3 -3 ---------- Run | Scr Mat Min Mat Min Exi Min Mat Sto Fac Low Low Zio Pro Fac Low Low Dat Pro Fac Ext Cet Arc Hub Fac Was Fac Res Qua Machines Disabled 34 | . 4 . 4 . . . 3 5 . . . . . 3 . . 1 . . 1 1 1 5 . . . . 6 Max in Single Turn 4 | . 4 . 1 . . . 1 1 . . . . . 1 . . 1 . . 1 . 1 3 . . . . 1 Garrison Access 4 | . . . . . . . . 1 . . . . . 2 . . . . . . . . 1 . . . . . Network Hub 1 | . . . . . . . . . . . . . . . . . . . . . . . 1 . . . . . Machines Sabotaged . | . . . . . . . . . . . . . . . . . . . . . . . . . . . . . Garrisons Compromised 1 | . . . . . . . . . . . . . . . . . . . 1 . . . . . . . . . Overloaded Fab Kills . | . . . . . . . . . . . . . . . . . . . . . . . . . . . . . Hacking | -11 -10 -10 -9 -9 -9 -8 -8 -8 -7 -7 -7 -7 -6 -6 -6 -6 -6 -5 -5 -5 -5 -5 -5 -4 -4 -4 -3 -3 --------- Run | Scr Mat Min Mat Min Exi Min Mat Sto Fac Low Low Zio Pro Fac Low Low Dat Pro Fac Ext Cet Arc Hub Fac Was Fac Res Qua Machines Accessed 94 | . 9 . 10 . 1 . 7 4 3 1 1 . . 13 . 1 4 . 8 12 1 . 6 1 . . 5 7 Terminals 68 | . 7 . 9 . . . 4 2 2 . . . . 9 . . . . 6 12 1 . 5 1 . . 5 5 Fabricators 4 | . . . . . . . . . 1 . . . . 2 . . . . 1 . . . . . . . . . Repair Stations 6 | . 1 . 1 . . . 1 2 . . . . . . . . . . . . . . . . . . . 1 Recycling Units 1 | . 1 . . . . . . . . . . . . . . . . . . . . . . . . . . . Scanalyzers 4 | . . . . . . . 2 . . . . . . . . . . . 1 . . . . . . . . 1 Garrison Access 3 | . . . . . . . . . . . . . . 2 . . . . . . . . 1 . . . . . Total Hacks 382 | . 23 . 40 . 6 . 27 9 19 1 1 . . 43 . 1 29 . 36 38 2 . 32 1 . . 28 46 Successful 233 | . 12 . 26 . 6 . 17 5 13 1 1 . . 25 . 1 29 . 19 23 1 . 16 1 . . 13 24 Failed 149 | . 11 . 14 . . . 10 4 6 . . . . 18 . . . . 17 15 1 . 16 . . . 15 22 Catastrophic 20 | . . . 1 . . . 1 . 1 . . . . 3 . . . . 1 2 . . 4 . . . 2 5 Database Lockouts . | . . . . . . . . . . . . . . . . . . . . . . . . . . . . . Manual 201 | . 19 . 22 . . . 12 5 14 . . . . 27 . . . . 23 23 1 . 21 . . . 12 22 Terminals 270 | . 20 . 34 . . . 16 5 12 . . . . 29 . . . . 28 38 2 . 30 1 . . 28 27 Fabricators 21 | . . . . . . . . . 7 . . . . 9 . . . . 5 . . . . . . . . . Repair Stations 29 | . 2 . 6 . . . 2 4 . . . . . . . . . . . . . . . . . . . 15 Recycling Units 1 | . 1 . . . . . . . . . . . . . . . . . . . . . . . . . . . Scanalyzers 16 | . . . . . . . 9 . . . . . . . . . . . 3 . . . . . . . . 4 Garrison Access 7 | . . . . . . . . . . . . . . 5 . . . . . . . . 2 . . . . . Terminal Hacks 128 | . 3 . 12 . 6 . 5 . 7 1 1 . . 10 . 1 29 . 8 16 1 . 11 1 . . 10 6 Record 20 | . . . . . 6 . . . . . 1 . . . . . 11 . . . . . . . . . 1 1 Part Schematic 16 | . . . . . . . . . . . . . . 2 . . 10 . 1 2 . . . . . . 1 . Robot Schematic 5 | . . . . . . . . . . . . . . . . . 5 . . . . . . . . . . . Prototype ID Bank 9 | . . . 2 . . . . . 2 . . . . 1 . . 3 . . 1 . . . . . . . . Open Door 10 | . . . . . . . . . . 1 . . . . . 1 . . 1 5 1 . . . . . 1 . Open DSF 1 | . . . . . . . . . . . . . . . . . . . . . . . . 1 . . . . Branch Access Points 6 | . . . 1 . . . 1 . 1 . . . . 1 . . . . 1 . . . . . . . 1 . Machine Index 1 | . . . . . . . . . . . . . . . . . . . . . . . . . . . . 1 Terminal Index 7 | . . . . . . . 1 . 1 . . . . 1 . . . . 1 1 . . 1 . . . 1 . Fabricator Index 2 | . . . . . . . . . 1 . . . . . . . . . 1 . . . . . . . . . Alert Level 14 | . . . 3 . . . 1 . 1 . . . . 2 . . . . . 3 . . 2 . . . 1 1 Unreport Threat 7 | . 1 . 2 . . . 1 . 1 . . . . . . . . . . . . . 2 . . . . . Locate Traps 3 | . . . 1 . . . . . . . . . . 1 . . . . . . . . . . . . . 1 Disarm Traps 1 | . . . 1 . . . . . . . . . . . . . . . . . . . . . . . . . Reprogram Traps 1 | . . . . . . . . . . . . . . . . . . . . . . . . . . . . 1 Dispatch Records 1 | . . . . . . . . . . . . . . . . . . . . . . . . . . . 1 . Recall Investigation 1 | . . . . . . . . . . . . . . 1 . . . . . . . . . . . . . . Recall Extermination 1 | . . . . . . . . . . . . . . . . . . . . . . . . . . . 1 . Recall Reinforcements 1 | . . . . . . . . . . . . . . . . . . . . . . . 1 . . . . . Hauler Manifests 12 | . 1 . 1 . . . 1 . . . . . . 1 . . . . 2 3 . . 2 . . . 1 . Zone Layout 9 | . 1 . 1 . . . . . . . . . . . . . . . 1 1 . . 3 . . . 1 1 Fabricator Hacks 7 | . . . . . . . . . 2 . . . . 3 . . . . 2 . . . . . . . . . Network Status 1 | . . . . . . . . . . . . . . 1 . . . . . . . . . . . . . . Load Schematic 3 | . . . . . . . . . 1 . . . . 1 . . . . 1 . . . . . . . . . Build 3 | . . . . . . . . . 1 . . . . 1 . . . . 1 . . . . . . . . . Repair Station Hacks 26 | . 2 . 6 . . . 2 4 . . . . . . . . . . . . . . . . . . . 12 Scan Component 13 | . 1 . 3 . . . 1 2 . . . . . . . . . . . . . . . . . . . 6 Repair 13 | . 1 . 3 . . . 1 2 . . . . . . . . . . . . . . . . . . . 6 Recycling Unit Hacks . | . . . . . . . . . . . . . . . . . . . . . . . . . . . . . Scanalyzer 11 | . . . . . . . 6 . . . . . . . . . . . 3 . . . . . . . . 2 Insert Component 6 | . . . . . . . 3 . . . . . . . . . . . 1 . . . . . . . . 2 Analyze 5 | . . . . . . . 3 . . . . . . . . . . . 2 . . . . . . . . . Garrison Access Hacks 3 | . . . . . . . . . . . . . . 2 . . . . . . . . 1 . . . . . Seal Access 3 | . . . . . . . . . . . . . . 2 . . . . . . . . 1 . . . . . Unauthorized Hacks 58 | . 7 . 8 . . . 4 1 4 . . . . 10 . . . . 6 7 . . 4 . . . 3 4 Terminals 50 | . 6 . 8 . . . 4 1 2 . . . . 7 . . . . 4 7 . . 4 . . . 3 4 Assimilate 1 | . . . . . . . . . . . . . . 1 . . . . . . . . . . . . . . Botnet 47 | . 5 . 8 . . . 4 1 2 . . . . 6 . . . . 4 6 . . 4 . . . 3 4 Disrupt 1 | . 1 . . . . . . . . . . . . . . . . . . . . . . . . . . . Operators 1 | . . . . . . . . . . . . . . . . . . . . 1 . . . . . . . . Fabricators 7 | . . . . . . . . . 2 . . . . 3 . . . . 2 . . . . . . . . . Fabnet 4 | . . . . . . . . . 1 . . . . 2 . . . . 1 . . . . . . . . . Haulers 3 | . . . . . . . . . 1 . . . . 1 . . . . 1 . . . . . . . . . Repair Stations . | . . . . . . . . . . . . . . . . . . . . . . . . . . . . . Recycling Units 1 | . 1 . . . . . . . . . . . . . . . . . . . . . . . . . . . Tunnel 1 | . 1 . . . . . . . . . . . . . . . . . . . . . . . . . . . Scanalyzers . | . . . . . . . . . . . . . . . . . . . . . . . . . . . . . Garrison Access . | . . . . . . . . . . . . . . . . . . . . . . . . . . . . . Data Cores Recovered 1 | . . . 1 . . . . . . . . . . . . . . . . . . . . . . . . . Used . | . . . . . . . . . . . . . . . . . . . . . . . . . . . . . Hacking Detections 67 | . 8 . 10 . . . 7 2 3 . . . . 11 . . . . 6 7 . . 5 . . . 3 5 Full Trace Events 8 | . 1 . 1 . . . 1 . 1 . . . . 2 . . . . 1 . . . . . . . 1 . Feedback Events . | . . . . . . . . . . . . . . . . . . . . . . . . . . . . . Feedback Blocked . | . . . . . . . . . . . . . . . . . . . . . . . . . . . . . Robot Schematics Acquired 8 | . . . . . . . . . . . . 3 . . . . 5 . . . . . . . . . . . Robots Built . | . . . . . . . . . . . . . . . . . . . . . . . . . . . . . Authchips . | . . . . . . . . . . . . . . . . . . . . . . . . . . . . . Time . | . . . . . . . . . . . . . . . . . . . . . . . . . . . . . Total Robot Build Rating . | . . . . . . . . . . . . . . . . . . . . . . . . . . . . . Part Schematics Acquired 32 | . . . . . . . 1 . . . . 15 . 2 . . 10 . 1 2 . . . . . . 1 . Parts Built 2 | . . . . . . . . . . . . . . 1 . . . . 1 . . . . . . . . . Authchips . | . . . . . . . . . . . . . . . . . . . . . . . . . . . . . Time 310 | . . . . . . . . . 204 . . . . 53 . . . . 53 . . . . . . . . . Total Part Build Rating 12 | . . . . . . . . . . . . . . 6 . . . . 6 . . . . . . . . . Parts Repaired 13 | . 1 . 3 . . . 1 2 . . . . . . . . . . . . . . . . . . . 6 Time 578 | . 26 . 90 . . . 51 162 . . . . . . . . . . . . . . . . . . . 249 Parts Recycled . | . . . . . . . . . . . . . . . . . . . . . . . . . . . . . Recycled Matter . | . . . . . . . . . . . . . . . . . . . . . . . . . . . . . Retrieved Matter . | . . . . . . . . . . . . . . . . . . . . . . . . . . . . . Retrieved Components . | . . . . . . . . . . . . . . . . . . . . . . . . . . . . . Parts Scanalyzed 2 | . . . . . . . 1 . . . . . . . . . . . 1 . . . . . . . . . Part Schematics Acquired 1 | . . . . . . . 1 . . . . . . . . . . . . . . . . . . . . . Parts Damaged 1 | . . . . . . . 1 . . . . . . . . . . . . . . . . . . . . . Bothacking | -11 -10 -10 -9 -9 -9 -8 -8 -8 -7 -7 -7 -7 -6 -6 -6 -6 -6 -5 -5 -5 -5 -5 -5 -4 -4 -4 -3 -3 ------------ Run | Scr Mat Min Mat Min Exi Min Mat Sto Fac Low Low Zio Pro Fac Low Low Dat Pro Fac Ext Cet Arc Hub Fac Was Fac Res Qua Used RIF Installer . | . . . . . . . . . . . . . . . . . . . . . . . . . . . . . Robots Hacked 4 | . . . . . . . . . . . . . . . . . . . 2 1 . . . . . . 1 . Non-combat . | . . . . . . . . . . . . . . . . . . . . . . . . . . . . . Combat 4 | . . . . . . . . . . . . . . . . . . . 2 1 . . . . . . 1 . Robot Hacks Applied . | . . . . . . . . . . . . . . . . . . . . . . . . . . . . . Relay Couplers Released 4 | . . . . . . . . 2 . . . . . . . . . . . . . . 2 . . . . . Machine Destruction 4 | . . . . . . . . 2 . . . . . . . . . . . . . . 2 . . . . . Fabnet Peak Effective % 6 | . . . . . . . . . . . . . . . . . . 6 6 6 6 6 6 5 5 5 1 1 Autooverrided 4 | . . . . . . . . . . . . . . . . . . . 2 1 . . . . . . 1 . Robots Rewired 6 | . . . . . . . . . . . . . . . . . . . . 6 . . . . . . . . Allies Hacked . | . . . . . . . . . . . . . . . . . . . . . . . . . . . . . Hacks Repelled . | . . . . . . . . . . . . . . . . . . . . . . . . . . . . . Allies | -11 -10 -10 -9 -9 -9 -8 -8 -8 -7 -7 -7 -7 -6 -6 -6 -6 -6 -5 -5 -5 -5 -5 -5 -4 -4 -4 -3 -3 -------- Run | Scr Mat Min Mat Min Exi Min Mat Sto Fac Low Low Zio Pro Fac Low Low Dat Pro Fac Ext Cet Arc Hub Fac Was Fac Res Qua Total Allies 51 | . . 3 . . . . . 3 . . . 8 . 1 . . . . 2 14 . . . . 19 . 1 . Largest Group 19 | . . 3 3 . . . . 2 . . . 8 8 1 . . . . 1 10 10 2 . . 19 17 1 . Highest-Rated Group 684 | . . 40 40 . . . . 116 . . . 214 214 26 . . . . 49 430 427 62 . . 684 626 82 . Highest-Rated Ally 159 | . . 16 16 . . . . 100 . . . 31 31 26 . . . . 49 159 152 31 . . 50 50 82 . Total Orders . | . . . . . . . . . . . . . . . . . . . . . . . . . . . . . Ally Attacks 481 | . . . 29 . . . . 70 . . . . 41 . . . . . 11 68 71 10 . . 107 70 4 . Total Damage 12491 | . . . 265 . . . . 2316 . . . . 907 . . . . . 213 1691 1462 188 . . 3761 1671 17 . Kills 66 | . . . 6 . . . . 21 . . . . 4 . . . . . 1 12 6 . . . 7 9 . . Allies Corrupted 3 | . . . 1 . . . . . . . . . 2 . . . . . . . . . . . . . . . Allies Melted 1 | . . . . . . . . . . . . . . . . . . . 1 . . . . . . . . . Intel | -11 -10 -10 -9 -9 -9 -8 -8 -8 -7 -7 -7 -7 -6 -6 -6 -6 -6 -5 -5 -5 -5 -5 -5 -4 -4 -4 -3 -3 ------- Run | Scr Mat Min Mat Min Exi Min Mat Sto Fac Low Low Zio Pro Fac Low Low Dat Pro Fac Ext Cet Arc Hub Fac Was Fac Res Qua Robot Analysis Total . | . . . . . . . . . . . . . . . . . . . . . . . . . . . . . Derelict Logs Recovered 9 | . . 2 . 1 . . . . . 1 1 2 . . 1 1 . . . . . . . . . . . . Drone Launches . | . . . . . . . . . . . . . . . . . . . . . . . . . . . . . Drone Recoveries . | . . . . . . . . . . . . . . . . . . . . . . . . . . . . . Exploration | -11 -10 -10 -9 -9 -9 -8 -8 -8 -7 -7 -7 -7 -6 -6 -6 -6 -6 -5 -5 -5 -5 -5 -5 -4 -4 -4 -3 -3 ------------- Run | Scr Mat Min Mat Min Exi Min Mat Sto Fac Low Low Zio Pro Fac Low Low Dat Pro Fac Ext Cet Arc Hub Fac Was Fac Res Qua Turns Passed 24847 | 55 1278 840 2166 722 278 555 2602 1119 783 661 523 1069 882 1925 860 688 421 632 1620 1182 243 270 420 282 348 629 566 1228 Spaces Moved 13955 | 37 581 421 897 349 147 291 1007 548 524 461 358 801 583 1258 567 529 213 395 1062 755 128 96 250 162 237 307 280 711 Core 184 | 18 . . . . . . 2 . . . . . . . . . . . . . . . . . . . . 164 Treads . | . . . . . . . . . . . . . . . . . . . . . . . . . . . . . Legs 13524 | 19 581 421 897 349 147 291 972 334 524 461 358 801 583 1258 567 529 213 395 1062 755 128 96 250 162 237 307 280 547 Wheels 247 | . . . . . . . 33 214 . . . . . . . . . . . . . . . . . . . . Hover . | . . . . . . . . . . . . . . . . . . . . . . . . . . . . . Flight . | . . . . . . . . . . . . . . . . . . . . . . . . . . . . . Fastest Speed 50 | 50 120 190 190 190 190 190 120 120 130 130 130 130 126 122 122 122 122 120 120 120 120 120 120 120 120 120 120 50 Average Speed 140 | 121 171 190 190 190 190 190 188 130 130 130 130 130 131 124 122 122 123 124 125 120 120 120 120 120 120 124 120 106 Slowest Speed 500 | 250 190 190 190 190 190 190 500 135 200 130 130 130 200 195 122 122 193 126 190 120 120 120 120 120 120 260 190 330 Overloaded Moves . | . . . . . . . . . . . . . . . . . . . . . . . . . . . . . Propulsion Burnouts . | . . . . . . . . . . . . . . . . . . . . . . . . . . . . . Robots Hopped . | . . . . . . . . . . . . . . . . . . . . . . . . . . . . . Cave-ins Triggered . | . . . . . . . . . . . . . . . . . . . . . . . . . . . . . Exploration Rate (%) 56 | 5 95 90 74 54 53 74 75 62 16 65 58 81 59 44 59 72 80 55 23 83 64 77 34 7 95 12 10 71 Regions Visited 28 Branch Regions 18 Pre-discovered Areas 6 | . 1 . . . 1 . . . . . . 2 . . . 1 1 . . . . . . . . . . . Known Exits Taken 20 | . . . 1 . . 1 1 . 1 1 1 1 1 1 1 1 1 1 1 1 1 1 1 . . 1 1 . Unknown Exits Taken 6 | 1 1 1 . 1 1 . . 1 . . . . . . . . . . . . . . . . . . . . Scrap Searched 19 | . . 3 . 1 . 1 . . . . 2 3 3 . 2 4 . . . . . . . . . . . . Spaces Dug 129 | . . . . . . . 7 . . 1 12 . 2 13 12 . . 15 7 . . . 17 7 . 8 15 13 Terrain Destroyed 578 | . 23 . 41 10 . . 81 . . 1 12 . 2 21 16 4 . 50 20 2 . 4 188 13 1 37 32 20 Melee 16 | . . . . . . . . . . 1 12 . 2 . . . . . . . . . . . . . . 1 Projectile 245 | . . . . 1 . . 28 . . . . . . 21 5 4 . 30 20 2 . 4 28 13 1 37 32 19 AOE 317 | . 23 . 41 9 . . 53 . . . . . . . 11 . . 20 . . . . 160 . . . . . Terrain Rammed . | . . . . . . . . . . . . . . . . . . . . . . . . . . . . . Walls Destroyed . | . . . . . . . . . . . . . . . . . . . . . . . . . . . . . Machines Disabled . | . . . . . . . . . . . . . . . . . . . . . . . . . . . . . Actions | -11 -10 -10 -9 -9 -9 -8 -8 -8 -7 -7 -7 -7 -6 -6 -6 -6 -6 -5 -5 -5 -5 -5 -5 -4 -4 -4 -3 -3 --------- Run | Scr Mat Min Mat Min Exi Min Mat Sto Fac Low Low Zio Pro Fac Low Low Dat Pro Fac Ext Cet Arc Hub Fac Was Fac Res Qua Total 17737 | 44 769 447 1230 386 146 292 1495 855 603 510 394 831 668 1552 700 556 324 496 1289 944 186 223 311 227 275 446 419 1119 Wait 2135 | . 110 5 184 21 . . 273 175 46 38 22 23 47 184 106 7 37 59 107 68 31 103 25 40 21 53 43 307 Move 13928 | 36 580 420 896 348 146 290 1006 547 523 460 357 800 582 1257 566 528 212 394 1061 754 127 95 249 162 236 306 279 711 Hop . | . . . . . . . . . . . . . . . . . . . . . . . . . . . . . Pick Up 190 | 2 15 5 21 1 . . 20 25 6 1 . 2 6 8 1 2 11 . 21 10 3 2 . 2 2 6 10 8 Fast Attach 103 | 6 2 . 6 . . . 15 5 2 . . 1 4 13 . . 6 . 13 4 1 3 . . . 4 7 11 Attach 75 | . 1 . 4 . . . 13 1 2 . . . 4 2 . . 5 3 9 . 1 1 1 3 . 7 11 7 Detach 7 | . . . . . . . . . . . . . . . . . . . . . . . . . . 1 4 2 Swap 215 | . 7 1 19 2 . . 20 18 8 5 1 1 6 14 6 8 9 4 16 21 5 1 5 3 4 10 9 12 Drop 219 | . 6 5 33 1 . . 30 20 7 1 . 4 4 23 2 4 13 . 16 21 3 5 . 1 . 4 6 10 Fire 713 | . 47 8 65 8 . . 113 46 9 4 . . . 32 18 6 5 32 41 45 15 13 31 16 12 54 49 44 Melee 64 | . . . . . . . . . . 1 14 . 15 . . 1 26 . . 1 . . . . . . 1 5 Ram 1 | . . . . . . . . . . . . . . . . . . . . . . . . . . . . 1 Kick 41 | . 1 3 2 5 . 2 5 2 . . . . . 9 . . . 4 5 1 . . . . . 1 . 1 Crush . | . . . . . . . . . . . . . . . . . . . . . . . . . . . . . Escape Stasis 26 | . . . . . . . . 16 . . . . . 10 . . . . . . . . . . . . . . Rewire 19 | . . . . . . . . . . . . . . . . . . . . 19 . . . . . . . . Trap 1 | . . . . . . . . . . . . . . . 1 . . . . . . . . . . . . . Miscellaneous . | . . . . . . . . . . . . . . . . . . . . . . . . . . . . . Route ------- -11/Scrapyard -10/Materials (discovered 4 exits: *Mat x3 / [*Min]) -10/Mines (discovered 2 exits: *Mat x2) -9/Materials (discovered 5 exits: *Mat x3 / *Min x2) -9/Mines (discovered 4 exits: *Mat x2 / *Exi / *Zio) -9/Exiles -8/Mines -8/Materials (discovered 3 exits: *Fac x2 / *Sto) -8/Storage -7/Factory (discovered 3 exits: *Fac / *Low x2) -7/Lower Caves -7/Lower Caves (discovered 2 exits: *Fac / *Zio) -7/Zion -6/Proximity Caves -6/Factory (discovered 3 exits: *Fac / *Low x2) -6/Lower Caves -6/Lower Caves (discovered 2 exits: *Fac / *Dat) -6/Data Miner -5/Proximity Caves -5/Factory (discovered 4 exits: Upp x2 / *Ext x2) -5/Extension (discovered 2 exits: *Fac / *Cet) -5/Cetus -5/Archives (discovered 3 exits: *Fac / *Hub x2) -5/Hub_04(d) -4/Factory -4/Waste -4/Factory -3/Research (discovered 2 exits: *Qua x2) -3/Quarantine History --------- Turn | Location | Event 7 | -11/Scrapyard | Discovered new exit (range 15) 56 | -11/Scrapyard | Entered Materials 302 | -10/Materials | Build established: Mutant 608 | -10/Materials | Discovered new exit (range 16) 745 | -10/Materials | Discovered new exit (range 15) 1071 | -10/Materials | Discovered new exit (range 4) 1270 | -10/Materials | Repaired Med. Laser 1289 | -10/Materials | Discovered new exit (range 8) 1334 | -10/Materials | Entered Mines 1454 | -10/Mines | Discovered new exit (range 8) 1476 | -10/Mines | YI-UF0 nonchalantly dropped a Grenade Launcher on the ground 1491 | -10/Mines | Destroyed YI-UF0 1686 | -10/Mines | Learned 4 Materials zone layouts 1883 | -10/Mines | Learned 8 Materials zone layouts 2037 | -10/Mines | Discovered new exit (range 15) 2052 | -10/Mines | Assisted by bots powering up and referring to "LRC-V3" 2174 | -10/Mines | Entered Materials 2174 | -9/Materials | Accompanied by 3 allies 2174 | -9/Materials | Evolved 2 slots: Utility x1, Weapon x1 2175 | -9/Materials | Identified exit to Materials 2175 | -9/Materials | Identified exit to Mines 2482 | -9/Materials | Build established: Scavenger-Gunner 3010 | -9/Materials | Repaired Med. Laser 3049 | -9/Materials | Repaired Carbon-fiber Leg 3076 | -9/Materials | Repaired Sml. Laser 4340 | -9/Materials | Entered Mines 4341 | -9/Mines | Assembled infested the area 4346 | -9/Mines | Assisted by a Guerilla fighting off Assembled 4537 | -9/Mines | Discovered exit to Materials (range 12) 4610 | -9/Mines | Discovered exit to Materials (range 14) 4691 | -9/Mines | A weapon hastily lodged in a ceiling crevice suddenly fell to the ground 4723 | -9/Mines | A Derelict revealed a hidden shortcut to a safe place 4922 | -9/Mines | Found a damaged Exp. Sensor Array with a note attached 4926 | -9/Mines | Found Prototype Device 5054 | -9/Mines | Deemed a non-threat by the Exiles lab entrance 5054 | -9/Mines | Discovered new exit (range 5) 5062 | -9/Mines | Entered Exiles 5108 | -9/Exiles | Met 8R-AWN 5140 | -9/Exiles | Met EX-HEX 5228 | -9/Exiles | Met EX-DEC 5260 | -9/Exiles | Learned location of Zion (-7) 5325 | -9/Exiles | Discovered new exit (range 10) 5340 | -9/Exiles | Entered Mines 5880 | -8/Mines | Discovered exit to Materials (range 9) 5895 | -8/Mines | Entered Materials 5895 | -8/Materials | Evolved 2 slots: Propulsion x1, Utility x1 6110 | -8/Materials | Repaired Adv. Beam Cannon 6423 | -8/Materials | Build established: Scavenger-Tank 6792 | -8/Materials | Identified Exp. Sensor Array 7084 | -8/Materials | Discovered new exit (range 16) 7653 | -8/Materials | Identified exit to Storage 7815 | -8/Materials | Build established: Tank 7985 | -8/Materials | Discovered new exit (range 16) 8243 | -8/Materials | Build established: Scavenger-Tank 8295 | -8/Materials | First assault squad dispatched 8399 | -8/Materials | Core integrity fell below 50% 8449 | -8/Materials | Lost 15 parts (2p6n4u3w) 8497 | -8/Materials | Entered Storage 8528 | -8/Storage | Met 01-MTF 8742 | -8/Storage | Build established: Scavenger-Gunner 8823 | -8/Storage | Repaired Broken Exp. Sensor Array? 9265 | -8/Storage | Build established: Gunner 9292 | -8/Storage | Repaired Lrg. Storage Unit 9297 | -8/Storage | First assault squad dispatched 9366 | -8/Storage | Core integrity fell below 20% 9596 | -8/Storage | Discovered new exit (range 15) 9616 | -8/Storage | Entered Factory 9616 | -7/Factory | Evolved 2 slots: Utility x2 9617 | -7/Factory | Identified exit to Lower Caves 9898 | -7/Factory | Discovered new exit (range 9) 9907 | -7/Factory | Identified exit to Factory 9933 | -7/Factory | Build established: Skirmisher 10399 | -7/Factory | Entered Lower Caves 10490 | -7/Lower Caves | Learned Factory emergency access door positions 10834 | -7/Lower Caves | Encountered a Warlord checkpoint 10879 | -7/Lower Caves | Discovered new exit (range 11) 10896 | -7/Lower Caves | Identified exit to Lower Caves 11060 | -7/Lower Caves | Entered another Lower Caves area 11120 | -7/Lower Caves | Build established: Mutant 11162 | -7/Lower Caves | Discovered exit to Factory (range 6) 11297 | -7/Lower Caves | Identified exit to Zion 11583 | -7/Lower Caves | Entered Zion 11666 | -7/Zion | Found CR-A16's Pointy Stick 11727 | -7/Zion | Learned Factory stockpile data 11870 | -7/Zion | Learned 8 Factory zone layouts 12165 | -7/Zion | Loaded intel: 4 derelict terminal locations 12181 | -7/Zion | Learned location of Warlord (-4) 12364 | -7/Zion | Gained Derelict followers 12466 | -7/Zion | Discovered new exit (range 14) 12477 | -7/Zion | Gained Derelict followers 12625 | -7/Zion | Identified exit to Proximity Caves 12652 | -7/Zion | Entered Proximity Caves 12652 | -6/Proximity Caves | Accompanied by 8 allies 13193 | -6/Proximity Caves | Spotted B-75 Beast 13255 | -6/Proximity Caves | Revealed the true nature of CR-A16's Pointy Stick 13264 | -6/Proximity Caves | Destroyed B-75 Beast 13287 | -6/Proximity Caves | Lost 7 parts (2p1n3u1w) 13452 | -6/Proximity Caves | Discovered exit to Factory (range 4) 13534 | -6/Proximity Caves | Entered Factory 13534 | -6/Factory | Evolved 2 slots: Power x1, Propulsion x1 13575 | -6/Factory | Build established: Scavenger-Skirmisher 13760 | -6/Factory | Identified exit to Lower Caves 15107 | -6/Factory | Discovered new exit (range 11) 15126 | -6/Factory | Identified exit to Factory 15386 | -6/Factory | Fabricated Adv. Cooling System? 15459 | -6/Factory | Entered Lower Caves 16275 | -6/Lower Caves | Attracted the attention of an 0b10 checkpoint 16303 | -6/Lower Caves | Discovered new exit (range 14) 16318 | -6/Lower Caves | Identified exit to Lower Caves 16319 | -6/Lower Caves | Entered another Lower Caves area 16372 | -6/Lower Caves | Discovered exit to Factory (range 11) 16373 | -6/Lower Caves | Encountered a Warlord checkpoint 16467 | -6/Lower Caves | Spotted B-75 Beast 16474 | -6/Lower Caves | Destroyed B-75 Beast 16570 | -6/Lower Caves | Learned location of Extension (-5) 16990 | -6/Lower Caves | Discovered new exit (range 10) 16999 | -6/Lower Caves | Identified exit to Data Miner 17007 | -6/Lower Caves | Entered Data Miner 17007 | -6/Data Miner | Discovered new exit (range 6) 17031 | -6/Data Miner | Met Data Miner 17055 | -6/Data Miner | Learned location of Section 7 (-2) 17055 | -6/Data Miner | Acquired the access code to Warlord's prototype stash 17073 | -6/Data Miner | Received God Mode back door access code from Data Miner 17119 | -6/Data Miner | Destroyed Data Miner 17123 | -6/Data Miner | Found Prototype Hackware 17125 | -6/Data Miner | Found Prototype Hackware 17127 | -6/Data Miner | Data Conduit disabled 17215 | -6/Data Miner | Lost 4 parts (1p1n1u1w) 17298 | -6/Data Miner | Found Prototype Device 17298 | -6/Data Miner | Identified Exp. Thermal Shield 17390 | -6/Data Miner | Found Prototype Hackware 17390 | -6/Data Miner | Identified Quantum Router 17411 | -6/Data Miner | Build established: Scavenger-Mutant 17426 | -6/Data Miner | Identified exit to Proximity Caves 17428 | -6/Data Miner | Entered Proximity Caves 17434 | -5/Proximity Caves | Attracted the attention of an 0b10 checkpoint 17898 | -5/Proximity Caves | Attracted the attention of an 0b10 outpost 18052 | -5/Proximity Caves | Discovered exit to Factory (range 7) 18060 | -5/Proximity Caves | Entered Factory 18060 | -5/Factory | Evolved 2 slots: Utility x2 18061 | -5/Factory | Identified exit to Upper Caves 18061 | -5/Factory | Identified System Mapper 18062 | -5/Factory | Identified Ghost Barrier 18085 | -5/Factory | Lost 15 parts (3p4n5u3w) 18350 | -5/Factory | Build established: Hacker-Mutant 18675 | -5/Factory | Identified exit to Extension 18823 | -5/Factory | Fabricated Adv. Hacking Suite? 18842 | -5/Factory | Cargo convoy interrupted 19417 | -5/Factory | Build established: Scavenger-Skirmisher 19680 | -5/Factory | Entered Extension 20080 | -5/Extension | Disrupted transfer network 20102 | -5/Extension | Rescued A7 20259 | -5/Extension | Build established: Scavenger-Gunner 20381 | -5/Extension | Spotted B-75 Beast 20402 | -5/Extension | Destroyed B-75 Beast 20435 | -5/Extension | Spotted B-75 Beast 20450 | -5/Extension | Destroyed B-75 Beast 20568 | -5/Extension | Rescued a captive Derelict 20602 | -5/Extension | Rescued a captive Derelict 20613 | -5/Extension | Rescued a captive Derelict 20614 | -5/Extension | Rescued a captive Derelict 20759 | -5/Extension | Rescued a captive Derelict 20759 | -5/Extension | Rescued a captive Derelict 20823 | -5/Extension | Build established: Scavenger-Skirmisher 20833 | -5/Extension | Discovered new exit (range 10) 20834 | -5/Extension | Discovered new exit (range 6) 20850 | -5/Extension | Identified exit to Cetus 20862 | -5/Extension | Entered Cetus 20862 | -5/Cetus | Accompanied by 10 allies (A7) 20867 | -5/Cetus | Acquired a Cetus Manufacturing Module code from A7 20887 | -5/Cetus | Spotted Cetus Guard 20887 | -5/Cetus | Spotted Cetus Guard 20888 | -5/Cetus | Spotted Cetus Guard 20888 | -5/Cetus | Spotted Cetus Guard 20897 | -5/Cetus | Destroyed Cetus Guard 20904 | -5/Cetus | Allies destroyed Cetus Guard 20904 | -5/Cetus | Destroyed Cetus Guard 20908 | -5/Cetus | Allies destroyed Cetus Guard 20952 | -5/Cetus | Cetus Manufacturing Module disabled 20990 | -5/Cetus | Failed to start Cetus Manufacturing Module 21001 | -5/Cetus | Escorted A7 to Cetus Mainframe 21019 | -5/Cetus | Discovered new exit (range 15) 21085 | -5/Cetus | Destroyed A7 21090 | -5/Cetus | Extracted ID and sensor layout for unrecognized location from A7's data core 21101 | -5/Cetus | Identified exit to Archives 21105 | -5/Cetus | Entered Archives 21105 | -5/Archives | Accompanied by 2 allies 21191 | -5/Archives | Discovered new exit (range 15) 21210 | -5/Archives | Discovered new exit (range 16) 21348 | -5/Archives | Discovered new exit (range 16) 21374 | -5/Archives | Identified exit to Hub_04(d) 21375 | -5/Archives | Entered Hub_04(d) 21393 | -5/Hub_04(d) | Garrison activated, responded to threat 21568 | -5/Hub_04(d) | Discovered new exit (range 18) 21723 | -5/Hub_04(d) | Network Hub disabled 21794 | -5/Hub_04(d) | Identified exit to Factory 21795 | -5/Hub_04(d) | Entered Factory 21795 | -4/Factory | Evolved 2 slots: Utility x2 21802 | -4/Factory | Identified exit to DSF 22077 | -4/Factory | Sucked down chute 22077 | -4/Factory | Entered Waste 22103 | -4/Waste | Destroyed C-40 Crusher 22119 | -4/Waste | Spotted C-40 Crusher 22170 | -4/Waste | Spotted C-40 Crusher 22175 | -4/Waste | Spotted C-40 Crusher 22206 | -4/Waste | Warlord forces began an assault 22209 | -4/Waste | Allies destroyed C-40 Crusher 22218 | -4/Waste | Allies destroyed C-40 Crusher 22221 | -4/Waste | Spotted C-40 Crusher 22222 | -4/Waste | Allies destroyed C-40 Crusher 22226 | -4/Waste | Allies destroyed C-40 Crusher 22382 | -4/Waste | Discovered new exit (range 15) 22415 | -4/Waste | Identified exit to Factory 22425 | -4/Waste | Entered Factory 22425 | -4/Factory | Accompanied by 17 allies 22616 | -4/Factory | Garrison activated, responded to threat 22852 | -4/Factory | Lost 5 parts (4n1u) 22979 | -4/Factory | Discovered new exit (range 14) 23054 | -4/Factory | Identified exit to Research 23054 | -4/Factory | Entered Research 23054 | -3/Research | Evolved 2 slots: Propulsion x1, Utility x1 23138 | -3/Research | Identified exit to Quarantine 23236 | -3/Research | Spotted B-86 Titan 23238 | -3/Research | Destroyed B-86 Titan 23375 | -3/Research | Lost 3 parts (1n1u1w) 23620 | -3/Research | Entered Quarantine 23731 | -3/Quarantine | Repaired Broken Enh. Nova Cannon 23788 | -3/Quarantine | Repaired Centrium Medium Armor Plating 23843 | -3/Quarantine | Repaired Exp. Sensor Array 23872 | -3/Quarantine | Repaired Adv. Cooling System 23905 | -3/Quarantine | Repaired Myomer Leg 23937 | -3/Quarantine | Repaired Myomer Leg 24020 | -3/Quarantine | Found Alien Artifact 24073 | -3/Quarantine | Cryocooling Duct disabled 24088 | -3/Quarantine | Ambient heat levels rising (+20) 24088 | -3/Quarantine | Non-combat units ordered to evacuate 24123 | -3/Quarantine | Found Alien Artifact 24188 | -3/Quarantine | Identified Subatomic Replicator 24188 | -3/Quarantine | Identified Core Reset Matrix 24278 | -3/Quarantine | Build established: Scavenger-Mutant 24382 | -3/Quarantine | Cryocooling Duct disabled 24397 | -3/Quarantine | Ambient heat levels rising (+20) 24397 | -3/Quarantine | Combat units ordered to evacuate 24497 | -3/Quarantine | Quarantine Guard activated 24585 | -3/Quarantine | Spotted Quarantine Guard 24589 | -3/Quarantine | Spotted Quarantine Guard 24630 | -3/Quarantine | Lost 3 parts (1n1u1w) 24647 | -3/Quarantine | Spotted Quarantine Guard 24662 | -3/Quarantine | Spotted Quarantine Guard 24688 | -3/Quarantine | Spotted Quarantine Guard 24688 | -3/Quarantine | Found Alien Impact Weapon 24706 | -3/Quarantine | Identified Core Stripper 24706 | -3/Quarantine | Used Core Reset Matrix 24710 | -3/Quarantine | Detected hypermatrix surge 24710 | -3/Quarantine | Sensed 6 artifacts in vicinity 24728 | -3/Quarantine | Core integrity fell below 50% 24731 | -3/Quarantine | Spotted Quarantine Guard 24751 | -3/Quarantine | Lost 15 parts (3p5n4u3w) 24798 | -3/Quarantine | Core integrity fell below 20% 24801 | -3/Quarantine | Spotted Quarantine Guard 24848 | -3/Quarantine | Destroyed by Quarantine Guard with Hypercooled Linear Accelerator Last Messages --------------- 6x Tiamat Bomb Trap Map updated. >>Traps(Reprogram) Reprogrammed 6 Tiamat Bomb Traps. 24753_ Acquired Unknown Device. 24753_ Identified Imp. Thermal Shield. 24754_ Dropped Imp. Thermal Shield. 24790_ Adv. Signal Interpreter destroyed. 24790_ Knocked back. 24790_ Acquired 10 matter. 24793_ Knocked back. 24795_ Slammed into Quarantine Guard. 24796_ Knocked back. 24800_ Exp. Sensor Array destroyed. 24800_ Knocked back. 24807_ Acquired Unknown Processor. 24807_ Identified Adv. Launcher Guidance Computer. 24809_ Discarded Adv. Launcher Guidance Computer. 24845_ Adv. Hacking Suite destroyed. 24845_ Knocked back. Map ----- +----------------------------------------------------+ | #???# #????# # """ #???????????????? | | #???# #????# % #! """ #???????????????? | | #???#####+########## # """ #???????????????? | | ????## / %""" #???????????????? | | ????#" % " ! """ #???????????????? | | ????## # """ #???????????????? | | ????#" % # """ #???????????????? | | ????#T #####"#########] #???????????????? | | ????## ###???????????##########???????????????? | | ###### ""#############????????????????????????? | | #????????????????????????? | | #????????????????????????? | | #????????????????????????? | | #????????????????????????? | | """" ####+##### #????????????????????????? | | """ % # # #????????????????????????? | | # # #????????????????????????? | | """" # ! + #????????????????????????? | | """ # ! !! # #????????????????????????? | | # # #????????????????????????? | | ########## #????????????????????????? | | ###########??########+#+######???????????????????? | | #??????????# #???????????????????? | | []##?????????# """ """Y "" #???????????????????? | | !*"#?????????# """ """ """#???????????????????? | | ]!##?????????# """Y""" @ S"#???????????????????? | | %*"#?????????# """#???????????????????? | | !%##?????????# """Y"""% """#???????????????????? | | ! #??????????# """ """ #???????????????????? | | ###??????????# """ """% #???????????????????? | | #????????????# Y #???????????????????? | | #????????????# % #???????????????????? | | #????????????#################???????????????????? | | ?????????????????????????????????????????????????? | | ?????????????????????????????????????????????????? | | ?????????????????????????????????????????????????? | | ????????????????????????????????????????????????? | | ???????????????????????????????????????????????? | | ??????????????????????????????????????????????? | | ?????????????????????????????????????????????? | | ???????????????????????????????????????????? | | ??????????????????????????????????????????? | | ?? ??????????!???????????????????????????????? | | ???? ??????????????????????????????????????????? | | ????? ???????????????????????????????????????????? | | ?????????????????????????????????????????????????? | | ?????????????????????????????????????????????????? | | ?????????????????????????????????????????????????? | | ?????????????????!???????????????????????????????? | | ?????????????????????????????????????????????????? | +----------------------------------------------------+ Best States ------------- Heat Dissipation 127 Energy Generation 41 Energy Capacity 580 Matter Stores 300 Matter Capacity 300 Sight Range 16 Robot Scan Range 20 Terrain Scan Density 10 Armor Coverage 450 Resistance: KI 20 Resistance: TH 30 Resistance: EM 20 Weapon Cycling 20 Evasion (%) 55 Targeting Accuracy 8 Offensive Hacking 26 Defensive Hacking 25 Item Schematics ----------------- None Robot Schematics ------------------ None Fabricated ------------ Adv. Cooling System | x1 | -6/Factory Adv. Hacking Suite | x1 | -5/Factory Alien Tech Used ----------------- Core Reset Matrix Core Stripper Achievements -------------- None Challenges ------------ None Game ------ Seed LauncherPotentialInsulator Manual? 0 Play Time 03:20:08 Cumulative 1385.2 hours Start 2022.02.03 @ 21:50:51 End 2022.02.04 @ 18:17:29 Sessions 3 Manual Loads 0 Difficulty Rogue Special Mode None Game No. 487 Rogue 487 Adventurer 0 Explorer 0 Win Type - Total 96 Types 21/12/38/5/1/2/15/1/1 Lore% 95 Gallery% 93 Achievement% 86 Wizard Run 0 Options --------- ASCII 0 Keyboard 0 Movement Numpad Keybinds 0 Fullscreen 1 Font 18/SmallcapsGlow Map View 76x50 Tactical HUD 1 Map Filters NONE Filters NONE Steam 1 RUN: 0ee071be-f753-4eb6-8b56-255d595e67a4